Cogmind - Beta 16.1 @@@ ROGUE MODE // 2026.02.27 @ 15:46:32 Player: Busket Result: Destroyed by G-47 Trooper with Particle Gun Performance ------------- Evolutions (2) 1000 Regions Visited (4) 800 Robots Destroyed (7) 35 Value Destroyed (199) 199 Prototype IDs (1) 20 Alien Tech Used (0) 0 Bonus (0) 0 TOTAL SCORE: 2054 Bonus ------- None Cogmind --------- Core Integrity 0/550 Matter 267/300 Energy 100/100 System Corruption 0% Temperature Cool (9) Movement Core (350) Ox6 Location -8/Storage Parts ------- > --- POWER (2) -------- (None) > --- PROPULSION (3) --- (None) > --- UTILITY (4) ------ Large Storage Unit > --- WEAPON (2) ------- (None) > --- INVENTORY (15) --- Cooled Ion Engine Cooled Ion Engine Flight Unit Large Storage Unit Improved Sensor Array Core Shielding Hacking Suite Peak State ------------ > --- POWER ------------ Cooled Ion Engine Cooled Ion Engine > --- PROPULSION ------- Aluminum Leg Aluminum Leg Aluminum Leg > --- UTILITY ---------- Large Storage Unit Light Armor Plating Light Armor Plating Light Armor Plating > --- WEAPON ----------- Pulse Rifle Heavy Assault Rifle > --- INVENTORY -------- Ion Engine Light Ion Engine Wheel Wheel Flight Unit Large Storage Unit Improved Sensor Array Core Shielding Light Armor Plating [Rating: 19] Favorites ----------- Power Ion Engine Engine Ion Engine Propulsion Aluminum Leg Treads Light Treads Leg Aluminum Leg Wheel Wheel Flight Unit Flight Unit Utility Light Armor Plating Storage Small Storage Unit Protection Light Armor Plating Weapon Assault Rifle Energy Gun Particle Gun Ballistic Gun Assault Rifle Build | -11 -10 -9 -8 -8 ------- Run | Yrd Mat Mat Mat Sto Slots Evolved 4 | . . 2 2 . Power 1 | . . . 1 . Propulsion 1 | . . 1 . . Utility 2 | . . 1 1 . Weapon . | . . . . . Parts Attached 24 | 5 1 7 6 5 Power 5 | 1 . 1 1 2 Engine 5 | 1 . 1 1 2 Core . | . . . . . Reactor . | . . . . . Propulsion 7 | 1 1 2 . 3 Treads 1 | . . 1 . . Leg 3 | 1 1 1 . . Wheel 2 | . . . . 2 Hover . | . . . . . Flight 1 | . . . . 1 Utility 6 | 1 . 2 3 . Device . | . . . . . Storage 2 | 1 . . 1 . Processor . | . . . . . Hackware . | . . . . . Protection 4 | . . 2 2 . Artifact . | . . . . . Weapon 6 | 2 . 2 2 . Energy Gun 4 | 1 . 2 1 . Energy Cannon . | . . . . . Ballistic Gun 2 | 1 . . 1 . Ballistic Cannon . | . . . . . Launcher . | . . . . . Special Weapon . | . . . . . Impact Weapon . | . . . . . Slashing Weapon . | . . . . . Piercing Weapon . | . . . . . Special Melee Weapon . | . . . . . Unidentified Prototypes 1 | . . . . 1 Parts Lost 14 | . . 1 . 13 Power 2 | . . . . 2 Propulsion 5 | . . . . 5 Utility 4 | . . . . 4 Weapon 3 | . . 1 . 2 Highest Loss Streak 9 | . . 1 . 9 To Critical Strikes . | . . . . . Average Backups 7 | 4 7 7 7 8 Power 1 | . 1 . . 1 Propulsion 3 | 3 4 3 3 2 Utility 2 | . . 2 3 3 Weapon . | . 1 1 . . Tool/Special . | . . . . . Unused Backups 8 | . . 2 . 6 Power 2 | . . . . 2 Propulsion 1 | . . 1 . . Utility 4 | . . . . 4 Weapon 1 | . . 1 . . Tool/Special . | . . . . . Average Slot Usage (%) 86 | . 78 93 98 78 Engine 13 | . 14 11 18 15 Leg 24 | . 21 28 27 20 Wheel 1 | . . . . 3 Storage 10 | . 14 11 9 9 Protection 15 | . . 18 25 17 Energy Gun 9 | . 14 9 9 5 Ballistic Gun 9 | . 14 11 9 6 Peak Build Rating 19 | 5 6 10 15 19 Average Rating 9 | 3 5 9 13 14 On Entrance 7 | . 5 6 10 14 Avg Prop Armor Cover (%) 9 | . . 6 . 12 Naked Turns . | . . . . . Heaviest Build 51 | 14 14 21 43 51 Greatest Support 30 | 10 20 30 30 30 Greatest Overweight (x) 6 | 3 1 1 1 6 Average Overweight (x) . | . . . . 1 Largest Inventory Capacity 15 | 8 8 8 15 15 Average Capacity 10 | 7 8 8 14 15 Most Carried 11 | 8 8 8 9 11 Average Carried 7 | 5 7 7 7 8 Final Capacity 15 | 8 8 8 15 15 Final Carried 8 | 7 8 8 7 7 Class Distribution -------------------- 100% | Mutant Dominant Class ---------------- Mutant | -10/Materials Mutant | -9/Materials Mutant | -8/Materials Mutant | -8/Storage Resources | -11 -10 -9 -8 -8 ----------- Run | Yrd Mat Mat Mat Sto Matter Collected 425 | 232 40 103 . 50 Remotely . | . . . . . Salvage Created 227 | . 43 134 . 50 Parts 8 | . 2 5 . 1 Haulers Intercepted . | . . . . . Recyclers Shooed . | . . . . . Parts Field Recycled . | . . . . . Retrieved Matter . | . . . . . Parts Self-Destructed . | . . . . . Prevented . | . . . . . Parts Restored . | . . . . . Kills | -11 -10 -9 -8 -8 ------- Run | Yrd Mat Mat Mat Sto Combat Hostiles Destroyed 7 | . 3 3 . 1 Guns 7 | . 3 3 . 1 Classes Destroyed 3 | . 1 2 . . Swarmer 3 | . 3 . . . Grunt 1 | . . 1 . . Sentry 3 | . . 2 . 1 Best Kill Streak 3 | . 3 1 . 1 Combat Bots Only 3 | . 3 1 . 1 Max Kills in Single Turn 1 | . 1 1 . 1 Gunslinging . | . . . . . Exploded . | . . . . . Melee . | . . . . . Uniques/NPCs Destroyed . | . . . . . Combat | -11 -10 -9 -8 -8 -------- Run | Yrd Mat Mat Mat Sto Hostile Shots Fired 214 | . 23 45 4 142 Missed 63 | . 3 17 . 43 Hits 151 | . 20 28 4 99 Projectile 151 | . 20 28 4 99 Critical Strikes 9 | . . 2 . 7 Damage Taken 2196 | . 147 401 67 1581 Core 702 | . 43 94 . 565 Absorbed by Shields . | . . . . . Core Remaining (%) 86 | 100 82 76 . . Volleys Fired 28 | . 12 12 . 4 Largest 2 | . 1 2 . 2 Hottest 86 | . 40 85 . 86 Shots Fired 44 | . 12 24 . 8 Gun 44 | . 12 24 . 8 Cannon . | . . . . . Launcher . | . . . . . Special . | . . . . . Kinetic 20 | . 4 12 . 4 Thermal 16 | . . 12 . 4 Explosive . | . . . . . Electromagnetic 8 | . 8 . . . Robot Hit Streak 13 | . 3 13 . 4 Robot Miss Streak 3 | . 2 3 . 1 Penetration Max . | . . . . . Secondary Targets . | . . . . . Shots Hit Robots 33 | . 7 20 . 6 Core Hits 11 | . 3 5 . 3 Critical Kills . | . . . . . Critical Parts Destroyed . | . . . . . Critical Strikes . | . . . . . Melee Attacks . | . . . . . Impact . | . . . . . Slashing . | . . . . . Piercing . | . . . . . Sneak Attacks . | . . . . . Combat Hostiles . | . . . . . Follow-up Attacks . | . . . . . Damage Inflicted 464 | . 88 266 . 110 Guns 457 | . 88 266 . 103 Cannons . | . . . . . Explosions . | . . . . . Melee . | . . . . . Ramming 7 | . . . . 7 Kinetic 249 | . 53 145 . 51 Thermal 173 | . . 121 . 52 Explosive . | . . . . . Electromagnetic 35 | . 35 . . . Impact . | . . . . . Slashing . | . . . . . Piercing . | . . . . . Highest Corruption . | . . . . . Average Corruption . | . . . . . Corruption Purged . | . . . . . Corruption Blocked . | . . . . . Overload Shots . | . . . . . Overflow Damage . | . . . . . Projectiles . | . . . . . Explosions . | . . . . . Melee . | . . . . . Knockbacks . | . . . . . Impact . | . . . . . Kinetic . | . . . . . Secondary . | . . . . . Self-Inflicted Damage . | . . . . . Shots . | . . . . . Rammed . | . . . . . Targets Rammed 2 | . . . . 2 Kicked 2 | . . . . 2 Crushed . | . . . . . Highest Temperature 253 | . . 253 . 126 Average Temperature 76 | . . 92 . 42 Received Heat Transfer 993 | . . 156 36 801 Siege Activations . | . . . . . Martial Activations . | . . . . . Shielding Activations . | . . . . . Robots Disrupted . | . . . . . Combat Hostiles . | . . . . . Robots Corrupted . | . . . . . Combat Hostiles . | . . . . . Parts Fried . | . . . . . Impact Corruptions . | . . . . . Robots Melted . | . . . . . Combat Hostiles . | . . . . . Parts Melted 2 | . . 2 . . Heat Transferred 408 | . . 297 . 111 Parts Sabotaged . | . . . . . Parts Stolen . | . . . . . Parts Stripped . | . . . . . Power Chain Reactions . | . . . . . Alert | -11 -10 -9 -8 -8 ------- Run | Yrd Mat Mat Mat Sto Maximum Alert Level . | . . . . . Low Security (%) 100 | 100 100 100 100 100 Level 1 . | . . . . . Level 2 . | . . . . . Level 3 . | . . . . . Level 4 . | . . . . . Level 5 . | . . . . . High Security . | . . . . . Max Security . | . . . . . Peak Influence 60 | . 60 45 15 45 Initial 15 | . . 8 15 . Average 8 | . 20 7 2 6 Influence Increases 290 | . 70 125 . 95 Destroy 0b10 Robot/C 140 | . 60 60 . 20 Destroy Leader 40 | . 10 20 . 10 Successful Hack 5 | . . . . 5 Partial Spotted 15 | . . . . 15 Lose Combat Pursuer 90 | . . 45 . 45 Influence Decreases 285 | . 50 108 37 90 Entered New Map 34 | . . 12 22 . Time Decay 216 | . 50 96 15 55 Lost Part 35 | . . . . 35 Squads Dispatched 1 | . . . . 1 Investigation . | . . . . . Extermination . | . . . . . Reinforcement 1 | . . . . 1 Assault . | . . . . . Garrison . | . . . . . Intercept . | . . . . . Searches Triggered . | . . . . . Construction Impeded . | . . . . . Haulers Reinforced . | . . . . . Active Scanning Responses . | . . . . . Cargo Convoy Interrupts . | . . . . . Stealth | -11 -10 -9 -8 -8 --------- Run | Yrd Mat Mat Mat Sto Distress Signals 1 | . . . . 1 Communications Jammed . | . . . . . Distress Signals . | . . . . . Times Spotted 34 | . 6 10 4 14 Peak Tracking Total 7 | . 3 4 6 7 Tactical Retreats 3 | . . 1 . 2 Traps | -11 -10 -9 -8 -8 ------- Run | Yrd Mat Mat Mat Sto Traps Triggered . | . . . . . Indirectly . | . . . . . Trap Hack Attempts . | . . . . . Triggered . | . . . . . Disarmed . | . . . . . Reprogrammed . | . . . . . Reused . | . . . . . Traps Extracted . | . . . . . Installed . | . . . . . Triggered . | . . . . . Machines | -11 -10 -9 -8 -8 ---------- Run | Yrd Mat Mat Mat Sto Machines Disabled . | . . . . . Max in Single Turn . | . . . . . Machines Repaired . | . . . . . Machines Dismantled . | . . . . . Machines Sabotaged . | . . . . . Overloaded Fab Kills . | . . . . . Hacking | -11 -10 -9 -8 -8 --------- Run | Yrd Mat Mat Mat Sto Machines Accessed 2 | . . 1 . 1 Terminals 1 | . . . . 1 Fabricators . | . . . . . Repair Stations . | . . . . . Recycling Units . | . . . . . Scanalyzers 1 | . . 1 . . Garrison Access . | . . . . . Total Hacks 7 | . . 3 . 4 Successful 6 | . . 3 . 3 Failed 1 | . . . . 1 Catastrophic . | . . . . . Database Lockouts . | . . . . . Manual . | . . . . . Terminals 4 | . . . . 4 Fabricators . | . . . . . Repair Stations . | . . . . . Recycling Units . | . . . . . Scanalyzers 3 | . . 3 . . Garrison Access . | . . . . . Terminal Hacks 3 | . . . . 3 Record 2 | . . . . 2 Zone Layout 1 | . . . . 1 Fabricator Hacks . | . . . . . Repair Station Hacks . | . . . . . Recycling Unit Hacks . | . . . . . Scanalyzer 3 | . . 3 . . Insert Component 2 | . . 2 . . Analyze 1 | . . 1 . . Garrison Access Hacks . | . . . . . Unauthorized Hacks . | . . . . . Terminals . | . . . . . Fabricators . | . . . . . Repair Stations . | . . . . . Recycling Units . | . . . . . Scanalyzers . | . . . . . Garrison Access . | . . . . . Data Cores Recovered . | . . . . . Used . | . . . . . Hacking Detections 2 | . . 1 . 1 Full Trace Events 1 | . . 1 . . Feedback Events . | . . . . . Feedback Blocked . | . . . . . Robot Schematics Acquired . | . . . . . Robots Built . | . . . . . Authchips . | . . . . . Time . | . . . . . Total Robot Build Rating . | . . . . . Part Schematics Acquired 1 | . . 1 . . Parts Built . | . . . . . Authchips . | . . . . . Time . | . . . . . Total Part Build Rating . | . . . . . Part Studies Acquired . | . . . . . Parts Repaired . | . . . . . Time . | . . . . . Parts Recycled . | . . . . . Recycled Matter . | . . . . . Retrieved Matter . | . . . . . Retrieved Components . | . . . . . Parts Scanalyzed 1 | . . 1 . . Part Schematics Acquired 1 | . . 1 . . Parts Damaged . | . . . . . Bothacking | -11 -10 -9 -8 -8 ------------ Run | Yrd Mat Mat Mat Sto Used RIF Installer . | . . . . . Robots Hacked . | . . . . . Non-combat . | . . . . . Combat . | . . . . . Robot Hacks Applied . | . . . . . Relay Couplers Released . | . . . . . Fabnet Peak Effective % . | . . . . . Robots Rewired . | . . . . . Allies Hacked . | . . . . . Hacks Repelled . | . . . . . Allies | -11 -10 -9 -8 -8 -------- Run | Yrd Mat Mat Mat Sto Total Allies . | . . . . . Largest Group . | . . . . . Highest-Rated Group . | . . . . . Highest-Rated Ally . | . . . . . Total Orders . | . . . . . Ally Attacks . | . . . . . Total Damage . | . . . . . Kills . | . . . . . Allies Corrupted . | . . . . . Allies Melted . | . . . . . Intel | -11 -10 -9 -8 -8 ------- Run | Yrd Mat Mat Mat Sto Active Infowar (turns) . | . . . . . Robot Analysis Total . | . . . . . Derelict Logs Recovered . | . . . . . Drone Launches . | . . . . . Drone Recoveries . | . . . . . Exploration | -11 -10 -9 -8 -8 ------------- Run | Yrd Mat Mat Mat Sto Turns Passed 1177 | 115 193 404 145 320 Spaces Moved 694 | 65 111 274 72 172 Core 12 | 8 . . . 4 Treads . | . . . . . Legs 614 | 57 111 274 72 100 Wheels 68 | . . . . 68 Hover . | . . . . . Flight . | . . . . . Fastest Speed 50 | 50 120 120 120 80 Average Speed 146 | 153 145 122 185 164 Slowest Speed 350 | 200 190 190 190 350 Overloaded Moves . | . . . . . Propulsion Burnouts . | . . . . . Robots Hopped . | . . . . . Potential Cave-ins . | . . . . . Cave-ins Triggered . | . . . . . Exploration Rate (%) 18 | 4 23 22 8 37 Regions Visited 4 Branch Regions 1 Pre-discovered Areas . | . . . . . Known Exits Taken . | . . . . . Unknown Exits Taken 4 | 1 1 1 1 . Scrap Searched . | . . . . . Spaces Dug . | . . . . . Terrain Destroyed . | . . . . . Melee . | . . . . . Projectile . | . . . . . AOE . | . . . . . Terrain Rammed . | . . . . . Walls Destroyed . | . . . . . Machines Disabled . | . . . . . Actions | -11 -10 -9 -8 -8 --------- Run | Yrd Mat Mat Mat Sto Total 820 | 81 130 321 86 202 Wait 20 | . 5 11 . 4 Move 690 | 64 110 273 71 172 Hop . | . . . . . Pick Up 34 | 12 2 10 4 6 Fast Attach . | . . . . . Attach 23 | 5 1 6 4 7 Detach 7 | . . 1 2 4 Swap 4 | . . 2 2 . Drop 12 | . . 6 3 3 Fire 28 | . 12 12 . 4 Melee . | . . . . . Ram . | . . . . . Kick 2 | . . . . 2 Crush . | . . . . . Escape Stasis . | . . . . . Rewire . | . . . . . Trap . | . . . . . Miscellaneous . | . . . . . Route ------- -11/Scrapyard -10/Materials -9/Materials -8/Materials -8/Storage History --------- Turn | Location | Event 2 | -11/Scrapyard | Met Revision 17 13 | -11/Scrapyard | Discovered new exit (range 16) 116 | -11/Scrapyard | Entered Materials 276 | -10/Materials | Discovered new exit (range 13) 309 | -10/Materials | Entered another Materials area 309 | -9/Materials | Evolved 2 slots: Propulsion x1, Utility x1 310 | -9/Materials | Build established: Mutant 709 | -9/Materials | Discovered new exit (range 3) 713 | -9/Materials | Entered another Materials area 713 | -8/Materials | Evolved 2 slots: Power x1, Utility x1 755 | -8/Materials | Discovered new exit (range 14) 858 | -8/Materials | Entered Storage 1130 | -8/Storage | Lost 9 parts (1p2n4u2w) 1169 | -8/Storage | Core integrity fell below 50% 1175 | -8/Storage | Core integrity fell below 20% 1178 | -8/Storage | Destroyed by G-47 Trooper with Particle Gun Last Messages --------------- Critical hit (Burn: +37). Lgt. Armor Plating destroyed. Critical hit (Burn: +37). Aluminum Leg destroyed. K-01 Serf cleans the Component Storage. Hvy. Assault Rifle destroyed. K-01 Serf cleans the Component Storage. Component Storage disabled. K-01 Serf cleans the Component Storage. Cld. Ion Engine destroyed. K-01 Serf cleans the Component Storage. K-01 Serf collects debris. Aluminum Leg destroyed. Critical hit (Burn: +37). Cld. Ion Engine destroyed. ALERT: Hostiles spotted, dispatching reinforcements to Terminal S002. Wheel destroyed. Critical hit (Burn: +37). U-05 Engineer destroyed. Map ----- +----------------------------------------------------+ | ## " # # """" #??????????###+###??##### | | ## * # # """" #??????????# #??# | | ##**" + # """" #??????????# #### | | #####T# # #???#####??# / | | ####### + #???#"""#??# ####] | | ??????# # #???#"R"#??# #??# | | ??????# # #??##" "##### ##??# ! | | ??????# # #??# # #???# | | ?????## ##########??# """ " # ##??# | | ?????# ############ """"" # T#??##### | | ?????# % ## """"" / ##??????? | | ?????# " + # #???????? | | ?????# a## """"" # #???????? | | ?????# ####### ## """"" # #???????? | | ?????###+###?????# ## """"" # #???????? | | ?????????????????# Y## # #???????? | | ?????????????????#gY ###############???????? | | ?????????????????# r#?? ????????????? | | ?????????????????# m #?! ] ? #???????????? | | ?????????????????# # #???????????? | | ?????????????????# # #???????????? | | ?????????????????# + #???????????? | | ?????????????????#!! # /! !! #???????????? | | ?????????????????#a= # #???????????? | | ???????#########?#| #? #???????????? | | ??????## ?# @g#?#########???????????? | | ??????# # #?????????????????????? | | ???????# # #?????????????????????? | | ???????# + #?????????????????????? | | ???????#[[[ "" # #?????????????????????? | | ???????#[[[ T"?# #?????????????????????? | | ???????#[[ "??# #?????????????????????? | | ?????????? ????# #?????????????????????? | | ???????????T?????#u #?????????????????????? | | ?????????????????# gY#?????????????????????? | | ???????????????### #?"???????????????????? | | ???????????????#"" # """""" #????????????? | | ???????????????#"T # #????????????? | | ???????????????#""g + #????????????? | | ???????????????### # #????????????? | | ?????????????????# ##########????????????? | | ?????????????????# #?????????????????????? | | ????????????????## ##????????????????????? | | ????????????????# #????????????????????? | | ????????????????# #????????????????????? | | ????????????????# T #????????????????????? | | ????????????????# #????????????????????? | | ????????????????# #????????????????????? | | ?????????????######+######?????????????????? | | ?????????????# #?????????????????? | +----------------------------------------------------+ Best States ------------- Heat Dissipation 31 Energy Generation 23 Energy Capacity 460 Matter Stores 300 Matter Capacity 300 Sight Range 16 Terrain Scan Density 10 Armor Coverage 450 Evasion (%) 55 Item Schematics ----------------- Flight Unit | -9/Materials | Scanalyzed Robot Schematics ------------------ None Fabricated ------------ Nothing Repaired ---------- Nothing Studied --------- None Alien Tech Used ----------------- None Achievements -------------- None Challenges ------------ None Game ------ Seed GravmagAssaultShield Manual? 0 Play Time 00:33:48 Cumulative 3.0 hours Start 2026.02.27 @ 14:57:47 End 2026.02.27 @ 15:46:32 Sessions 1 Manual Loads 0 Difficulty Rogue Special Mode None Game No. 8 Rogue 8 Adventurer 0 Explorer 0 Win Type - Total 0 Types 0/0/0/0/0/0/0/0/0/0 Lore% 0 Gallery% 4 Achievement% 4 Wizard Run 0 Options --------- Layout 1 ASCII 0 Keyboard 1 Movement Numpad Keybinds 0 Fullscreen 2 Font 32/SmallcapsGlow Map View 50x35 Zoom Use 0% Tactical HUD 0 Map Filters NONE Filters NONE Steam 1 RUN: 1c3839e5-db57-49a5-8d17-b884f7536593